Workbook

Sheet MSU
B1: Aatu Roivainen | E1: 22.1.2001 Siilinjärvi
B2: SUPERPESIS | E2: Runkosarja | I2: Kärkilyönnit (KL), pesänvälit | P2: Runkosarja TOP-30 | U2: Alempi loppusarja | AB2: Ylempi loppusarja TOP-10 | AG2: Play off, voitot, voittoprosentti | AL2: Arvo-ottelut | AO2: Mitalit
B3: Vuosi | C3: Sija | D3: Seura | E3: OTT | F3: KUN | G3: LÖI | H3: TOI | I3: KL | J3: 0 > 1 | K3: 1 > 2 | L3: 2 > 3 | M3: 3 > k | N3: KL-% | P3: LÖI | Q3: TOI | R3: L+T | S3: KL | U3: OTT | V3: KUN | W3: LÖI | X3: TOI | Y3: KL | Z3: KL-% | AB3: LÖI | AC3: TOI | AD3: L+T | AE3: KL | AG3: Puolivälierät | AH3: Välierät | AI3: Pronssi | AJ3: Finaalit | AL3: IL | AM3: LL | AN3: hSM | AO3: K | AP3: H | AQ3: P
B4: 2015 | C4: 8. | D4: SiiPe 2 | F4: suomensarja
B5: 2016 | C5: 8. | D5: PKP | F5: suomensarja
B6: 2017 | C6: 7. | D6: PKP | F6: suomensarja
B7: 2018 | C7: 4. | D7: JuNu | F7: suomensarja
B8: 2018 | C8: 2. | D8: SiiPe | F8: ykköspesis | U8: 4 | V8: 0 | W8: 0 | X8: 2 | Y8: 6 | Z8: 31.6 % | AA8: 19
B9: 2019 | C9: 7. | D9: LU | F9: ykköspesis
B10: 2019 | C10: 13. | D10: SiiPe | E10: 1 | F10: 0 | G10: 1 | H10: 1 | I10: 3 | J10: 2 | K10: 0 | L10: 0 | M10: 1 | N10: 37.5 % | O10: 8
B11: 2020 | C11: 6. | D11: SiiPe 2 | F11: suomensarja
B12: 2020 | C12: 6. | D12: SoJy 2 | F12: ykköspesis
B13: 2020 | C13: 14. | D13: SiiPe | E13: 8 | F13: 0 | G13: 0 | H13: 2 | I13: 11 | J13: 10 | K13: 0 | L13: 1 | M13: 0 | N13: 26.2 % | O13: 42
B14: Yhteensä | E14: =SUM(E4:E13) -> 9 | F14: 0 | G14: 1 | H14: 3 | I14: 14 | J14: 12 | K14: 0 | L14: 1 | M14: 1 | N14: =PRODUCT(I14/O14) -> 28.0 % | O14: =SUM(O4:O13) -> 50 | P14: 0-0-0 | Q14: 0-0-0 | R14: 0-0-0 | S14: 0-0-0 | U14: =SUM(U4:U13) -> 4 | V14: 0 | W14: 0 | X14: 2 | Y14: 6 | Z14: 31.6 % | AA14: =SUM(AA4:AA13) -> 1900.0 % | AB14: 0-0-0 | AC14: 0-0-0 | AD14: 0-0-0 | AE14: 0-0-0 | AG14: 0/0 | AH14: 0/0 | AI14: 0/0 | AJ14: 0/0 | AL14: =SUM(AL4:AL13) -> 0 | AM14: 0 | AN14: 0 | AO14: 0 | AP14: 0 | AQ14: 0
AG15: 0.0 % | AH15: 0.0 % | AI15: 0.0 % | AJ15: 0.0 %
B16: Pesispörssi | D16: =SUM(F14:H14)+((I14-F14-G14)/3)+(E14/3)+(AL14*25)+(AM14*25)+(AN14*10)+(AO14*25)+(AP14*20)+(AQ14*15) -> 11.3
B18: URA SUPERISSA | E18: OTT | F18: KUN | G18: LÖI | H18: TOI | I18: KL | K18: ka/L | L18: ka/T | M18: ka/KL | N18: KL-% | P18: ENSIMMÄISET RUNKOSARJASSA
B19: Runkosarja | E19: =PRODUCT(E14) -> 9 | F19: =PRODUCT(F14) -> 0 | G19: =PRODUCT(G14) -> 1 | H19: =PRODUCT(H14) -> 3 | I19: =PRODUCT(I14) -> 14 | K19: =PRODUCT((F19+G19)/E19) -> 0.11 | L19: =PRODUCT(H19/E19) -> 0.33 | M19: =PRODUCT(I19/E19) -> 1.56 | N19: =PRODUCT(N14) -> 28.0 % | O19: =PRODUCT(O14) -> 50 | P19: Ottelu | R19: 26.08. 2018 SiiPe - HP 2-0 (2-0, 3-2) | Z19: 1. ottelu | AC19: 17 v 7 kk 4 pv
B20: Ylempi loppusarja | P20: Lyöty | R20: 09.07. 2019 SiiPe - KPL 0-2 (4-12, 3-4) | Z20: 5. ottelu | AC20: 18 v 5 kk 17 pv
B21: Alempi loppusarja | E21: 4 | F21: 0 | G21: 0 | H21: 2 | I21: 6 | K21: =PRODUCT((F21+G21)/E21) -> 0.00 | L21: =PRODUCT(H21/E21) -> 0.50 | M21: =PRODUCT(I21/E21) -> 1.50 | N21: 31.6 % | O21: 19 | P21: Tuotu | R21: 01.09. 2018 SiiPe - HP 2-0 (7-4, 12-5) | Z21: 1. ottelu | AC21: 17 v 7 kk 10 pv
B22: KAIKKI | E22: =SUM(E19:E21) -> 13 | F22: =SUM(F19:F21) -> 0 | G22: =SUM(G19:G21) -> 1 | H22: =SUM(H19:H21) -> 5 | I22: =SUM(I19:I21) -> 20 | K22: =PRODUCT((F22+G22)/E22) -> 0.08 | L22: =PRODUCT(H22/E22) -> 0.38 | M22: =PRODUCT(I22/E22) -> 1.54 | N22: =PRODUCT(I22/O22) -> 29.0 % | O22: =SUM(O19:O21) -> 69 | P22: Kunnari
B24: Seurat | D24: SiiPe = Siilinjärven Pesis (1987), kasvattajaseura
D25: PKP = Puurtilan Kisa-Pojat (1948)
D26: JuNu = Juvan Nuorisopesis (2002)
D27: LU = Laukaan Urheilijat (1929)
D28: SoJy = Sotkamon Jymy (1909)

Sheet MYP, MSS
B1: Aatu Roivainen | E1: 22.1.2001 Siilinjärvi
B2: YKKÖSPESIS | E2: Runkosarja | L2: Runkosarja TOP-10 | Q2: Jatkosarjat | X2: SUOMENSARJA | AA2: Runkosarja | AH2: Runkosarja TOP-10 | AM2: Jatkosarjat
B3: Vuosi | C3: Sija | D3: Seura | E3: OTT | F3: KUN | G3: LÖI | H3: TOI | I3: KL | J3: KL-% | L3: LÖI | M3: TOI | N3: L+T | O3: KL | Q3: OTT | R3: KUN | S3: LÖI | T3: TOI | U3: KL | V3: KL-% | X3: Vuosi | Y3: Sija | Z3: Seura | AA3: OTT | AB3: KUN | AC3: LÖI | AD3: TOI | AE3: KL | AF3: KL-% | AH3: LÖI | AI3: TOI | AJ3: L+T | AK3: KL | AM3: OTT | AN3: KUN | AO3: LÖI | AP3: TOI | AQ3: KL | AR3: KL-%
X4: 2015 | Y4: 8. | Z4: SiiPe 2 | AA4: 4 | AB4: 0 | AC4: 1 | AD4: 1 | AE4: 6 | AF4: 35.3 % | AG4: 17
X5: 2016 | Y5: 8. | Z5: PKP | AA5: 8 | AB5: 0 | AC5: 3 | AD5: 0 | AE5: 19 | AF5: 38.8 % | AG5: 49
X6: 2017 | Y6: 7. | Z6: PKP | AA6: 16 | AB6: 0 | AC6: 1 | AD6: 22 | AE6: 62 | AF6: 54.4 % | AG6: 114
B7: 2018 | C7: 2. | D7: SiiPe | E7: 9 | F7: 0 | G7: 3 | H7: 5 | I7: 28 | J7: 56.0 % | K7: 50 | Q7: 3 | R7: 0 | S7: 0 | T7: 0 | U7: 3 | V7: 21.4 % | W7: 14 | X7: 2018 | Y7: 4. | Z7: JuNu | AA7: 9 | AB7: 2 | AC7: 0 | AD7: 12 | AE7: 32 | AF7: 56.1 % | AG7: 57
B8: 2019 | C8: 7. | D8: LU | E8: 20 | F8: 0 | G8: 3 | H8: 3 | I8: 45 | J8: 39.5 % | K8: 114
B9: 2020 | C9: 6. | D9: SoJy 2 | E9: 4 | F9: 0 | G9: 0 | H9: 4 | I9: 9 | J9: 28.1 % | K9: 32 | X9: 2020 | Y9: 6. | Z9: SiiPe 2 | AA9: 4 | AB9: 0 | AC9: 0 | AD9: 4 | AE9: 15 | AF9: 71.4 % | AG9: 21
B10: YHTEENSÄ | E10: =SUM(E4:E9) -> 33 | F10: =SUM(F4:F9) -> 0 | G10: =SUM(G4:G9) -> 6 | H10: =SUM(H4:H9) -> 12 | I10: =SUM(I4:I9) -> 82 | J10: =PRODUCT(I10/K10) -> 41.8 % | K10: =SUM(K4:K9) -> 196 | Q10: =SUM(Q4:Q9) -> 3 | R10: =SUM(R4:R9) -> 0 | S10: =SUM(S4:S9) -> 0 | T10: =SUM(T4:T9) -> 0 | U10: =SUM(U4:U9) -> 3 | V10: =PRODUCT(U10/W10) -> 21.4 % | W10: =SUM(W4:W9) -> 14 | X10: YHTEENSÄ | AA10: =SUM(AA4:AA9) -> 41 | AB10: =SUM(AB4:AB9) -> 2 | AC10: =SUM(AC4:AC9) -> 5 | AD10: =SUM(AD4:AD9) -> 39 | AE10: =SUM(AE4:AE9) -> 134 | AF10: =PRODUCT(AE10/AG10) -> 51.9 % | AG10: =SUM(AG4:AG9) -> 258 | AM10: =SUM(AM4:AM9) -> 0 | AN10: =SUM(AN4:AN9) -> 0 | AO10: =SUM(AO4:AO9) -> 0 | AP10: =SUM(AP4:AP9) -> 0 | AQ10: =SUM(AQ4:AQ9) -> 0 | AR10: 0.0 % | AS10: =SUM(AS4:AS9) -> 0
B12: KAIKKI OTTELUT | E12: OTT | F12: KUN | G12: LÖI | H12: TOI | I12: KL | J12: KL-% | L12: ka/L | M12: ka/T | N12: ka/l+t | O12: ka/kl | R12: Seurat | T12: SiiPe = Siilinjärven Pesis (1987), kasvattajaseura
B13: SUPERPESIS | E13: 13 | F13: 0 | G13: 1 | H13: 5 | I13: 20 | J13: 29.0 % | K13: =PRODUCT(I13/J13) -> 68.96551724 | L13: =PRODUCT((F13+G13)/E13) -> 0.08 | M13: =PRODUCT(H13/E13) -> 0.38 | N13: =PRODUCT((F13+G13+H13)/E13) -> 0.46 | O13: =PRODUCT(I13/E13) -> 1.54 | T13: PKP = Puurtilan Kisa-Pojat (1948)
B14: YKKÖSPESIS | E14: =PRODUCT(E10+Q10) -> 36 | F14: =PRODUCT(F10+R10) -> 0 | G14: =PRODUCT(G10+S10) -> 6 | H14: =PRODUCT(H10+T10) -> 12 | I14: =PRODUCT(I10+U10) -> 85 | J14: =PRODUCT(I14/K14) -> 40.5 % | K14: =PRODUCT(K10+W10) -> 210 | L14: =PRODUCT((F14+G14)/E14) -> 0.17 | M14: =PRODUCT(H14/E14) -> 0.33 | N14: =PRODUCT((F14+G14+H14)/E14) -> 0.50 | O14: =PRODUCT(I14/E14) -> 2.36 | T14: JuNu = Juvan Nuorisopesis (2002)
B15: SUOMENSARJA | E15: =PRODUCT(AA10+AM10) -> 41 | F15: =PRODUCT(AB10+AN10) -> 2 | G15: =PRODUCT(AC10+AO10) -> 5 | H15: =PRODUCT(AD10+AP10) -> 39 | I15: =PRODUCT(AE10+AQ10) -> 134 | J15: =PRODUCT(I15/K15) -> 51.9 % | K15: =PRODUCT(AG10+AS10) -> 258 | L15: =PRODUCT((F15+G15)/E15) -> 0.17 | M15: =PRODUCT(H15/E15) -> 0.95 | N15: =PRODUCT((F15+G15+H15)/E15) -> 1.12 | O15: =PRODUCT(I15/E15) -> 3.27 | T15: LU = Laukaan Urheilijat (1929)
B16: YHTEENSÄ | E16: =SUM(E13:E15) -> 90 | F16: =SUM(F13:F15) -> 2 | G16: 12 | H16: 56 | I16: 239 | J16: =PRODUCT(I16/K16) -> 44.5 % | K16: =SUM(K13:K15) -> 536.9655172 | L16: =PRODUCT((F16+G16)/E16) -> 0.16 | M16: =PRODUCT(H16/E16) -> 0.62 | N16: =PRODUCT((F16+G16+H16)/E16) -> 0.78 | O16: =PRODUCT(I16/E16) -> 2.66 | T16: SoJy = Sotkamon Jymy (1909)

Sheet Arvo-ottelut
B1: ITÄ - LÄNSI - KORTTI
B2: Aatu Roivainen | C2: 22.1.2001 Siilinjärvi
B3: B-POJAT | C3: Itä - Länsi, tulos | D3: Joukkue | E3: Seura | G3: V | H3: T | I3: H | J3: Up. | K3: Lj. | L3: Palk. | M3: O | N3: K | O3: L | P3: T | Q3: KL | R3: 1 | S3: 2 | T3: 3 | U3: k | V3: KL-% | W3: Pelinjohtaja | X3: Yleisöä
B4: 05.07. 2019 Seinäjoki | C4: 2-0 (6-3, 3-2) | D4: Itä | E4: SiiPa | G4: 1 | K4: jok | M4: 1 | O4: 1 | Q4: 2/4 | T4: 1/1 | U4: 1/3 | V4: 50.0 % | W4: Jussi-Pekka Tanskanen | X4: 1153
